[Event "December 5 Early 2023"]
[Site "https://www.chess.com"]
[Date "2023.12.05"]
[Round "2"]
[White "Kovalyov, Eduard"]
[Black "Gulamirian, Korun"]
[Result "1-0"]
[Board "244"]
[TimeControl "180+1"]
[WhiteFideId "14118033"]
[BlackFideId "4144899"]
[WhiteElo "2428"]
[BlackElo "2008"]
[WhiteTeam "UKR"]
[BlackTeam "RUS"]
[WhiteClock "0:00:38"]
[BlackClock "0:00:00"]

1. d4 {[%clk 0:02:56]}  Nf6 {[%clk 0:02:59]} 2. c4 {[%clk 0:02:56]}  c5 {[%clk 0:02:58]} 3. d5 {[%clk 0:02:56]}  b5 {[%clk 0:02:58]} 4. cxb5 {[%clk 0:02:57]}  a6 {[%clk 0:02:58]} 5. e3 {[%clk 0:02:56]}  g6 {[%clk 0:02:57]} 6. Nc3 {[%clk 0:02:55]}  Bg7 {[%clk 0:02:57]} 7. a4 {[%clk 0:02:55]}  d6 {[%clk 0:02:48]} 8. e4 {[%clk 0:02:54]}  O-O {[%clk 0:02:47]} 9. Nf3 {[%clk 0:02:51]}  axb5 {[%clk 0:02:44]} 10. Bxb5 {[%clk 0:02:50]}  Ba6 {[%clk 0:02:43]} 11. Qe2 {[%clk 0:02:45]}  Bxb5 {[%clk 0:02:36]} 12. Nxb5 {[%clk 0:02:46]}  Na6 {[%clk 0:02:26]} 13. Bd2 {[%clk 0:02:35]}  Nd7 {[%clk 0:02:05]} 14. Bc3 {[%clk 0:02:32]}  Nb4 {[%clk 0:01:48]} 15. O-O {[%clk 0:02:19]}  Nb6 {[%clk 0:01:20]} 16. b3 {[%clk 0:02:06]}  e5 {[%clk 0:01:07]} 17. Bxb4 {[%clk 0:01:55]}  cxb4 {[%clk 0:01:07]} 18. Nd2 {[%clk 0:01:55]}  f5 {[%clk 0:01:04]} 19. Nc4 {[%clk 0:01:51]}  f4 {[%clk 0:00:57]} 20. f3 {[%clk 0:01:28]}  Nxc4 {[%clk 0:00:50]} 21. Qxc4 {[%clk 0:01:29]}  Qb6+ {[%clk 0:00:43]} 22. Kh1 {[%clk 0:01:29]}  Rac8 {[%clk 0:00:34]} 23. Qxb4 {[%clk 0:01:28]}  Rc2 {[%clk 0:00:34]} 24. Rac1 {[%clk 0:01:18]}  Rfc8 {[%clk 0:00:32]} 25. Rxc2 {[%clk 0:01:08]}  Rxc2 {[%clk 0:00:30]} 26. Qxd6 {[%clk 0:01:08]}  Qf2 {[%clk 0:00:20]} 27. Rg1 {[%clk 0:00:51]}  Bf8 {[%clk 0:00:12]} 28. Qe6+ {[%clk 0:00:48]}  Kg7 {[%clk 0:00:06]} 29. Qxe5+ {[%clk 0:00:48]}  Kh6 {[%clk 0:00:05]} 30. Qxf4+ {[%clk 0:00:46]}  Kg7 {[%clk 0:00:00]} 31. Nd6 {[%clk 0:00:38]} 1-0

[Event "December 5 Early 2023"]
[Site "https://www.chess.com"]
[Date "2023.12.05"]
[Round "2"]
[White "Saim, Mohamed Ilias"]
[Black "Matrix3x3a"]
[Result "0-1"]
[Board "245"]
[TimeControl "180+1"]
[WhiteFideId "7900465"]
[WhiteElo "2002"]
[BlackElo "2428"]
[WhiteTeam "ALG"]
[WhiteClock "0:00:00"]
[BlackClock "0:01:39"]

1. d4 {[%clk 0:02:54]}  Nf6 {[%clk 0:02:59]} 2. c4 {[%clk 0:02:54]}  e6 {[%clk 0:02:59]} 3. Nf3 {[%clk 0:02:53]}  Bb4+ {[%clk 0:02:59]} 4. Bd2 {[%clk 0:02:51]}  c5 {[%clk 0:02:58]} 5. Bxb4 {[%clk 0:02:47]}  cxb4 {[%clk 0:02:59]} 6. a3 {[%clk 0:02:48]}  bxa3 {[%clk 0:02:58]} 7. Rxa3 {[%clk 0:02:48]}  O-O {[%clk 0:02:59]} 8. Nc3 {[%clk 0:02:46]}  d6 {[%clk 0:02:59]} 9. e4 {[%clk 0:02:45]}  Re8 {[%clk 0:02:56]} 10. Bd3 {[%clk 0:02:45]}  e5 {[%clk 0:02:56]} 11. O-O {[%clk 0:02:40]}  Bg4 {[%clk 0:02:54]} 12. d5 {[%clk 0:02:25]}  Nbd7 {[%clk 0:02:46]} 13. b4 {[%clk 0:02:08]}  a5 {[%clk 0:02:40]} 14. Nb5 {[%clk 0:02:02]}  Qb6 {[%clk 0:02:36]} 15. bxa5 {[%clk 0:01:55]}  Qc5 {[%clk 0:02:25]} 16. h3 {[%clk 0:01:44]}  Bxf3 {[%clk 0:02:24]} 17. Qxf3 {[%clk 0:01:40]}  Ra6 {[%clk 0:02:23]} 18. Rfa1 {[%clk 0:01:28]}  Rea8 {[%clk 0:02:20]} 19. Qe3 {[%clk 0:01:22]}  Qc8 {[%clk 0:02:10]} 20. c5 {[%clk 0:00:34]}  Nxc5 {[%clk 0:02:05]} 21. Nc3 {[%clk 0:00:20]}  Nxd3 {[%clk 0:02:00]} 22. Qxd3 {[%clk 0:00:19]}  Nd7 {[%clk 0:02:01]} 23. Qb5 {[%clk 0:00:15]}  Nc5 {[%clk 0:02:00]} 24. Qb4 {[%clk 0:00:12]}  Qd7 {[%clk 0:01:56]} 25. Nb5 {[%clk 0:00:10]}  Nxe4 {[%clk 0:01:51]} 26. Qa4 {[%clk 0:00:04]}  Nf6 {[%clk 0:01:41]} 27. Qb4 {[%clk 0:00:00]}  Qd8 {[%clk 0:01:39]} 0-1

[Event "December 5 Early 2023"]
[Site "https://www.chess.com"]
[Date "2023.12.05"]
[Round "2"]
[White "Parra Gomez, Adrian"]
[Black "Tilahun , Abel Mathewos"]
[Result "1-0"]
[Board "246"]
[TimeControl "180+1"]
[WhiteFideId "3513106"]
[BlackFideId "15702391"]
[WhiteElo "2427"]
[BlackElo "1998"]
[WhiteTeam "CUB"]
[BlackTeam "ETH"]
[WhiteClock "0:01:02"]
[BlackClock "0:00:00"]

1. d4 {[%clk 0:03:00]}  d5 {[%clk 0:02:59]} 2. c4 {[%clk 0:03:00]}  e6 {[%clk 0:02:59]} 3. Nc3 {[%clk 0:03:01]}  Nf6 {[%clk 0:02:59]} 4. Nf3 {[%clk 0:02:57]}  Nbd7 {[%clk 0:02:57]} 5. Bg5 {[%clk 0:02:57]}  Be7 {[%clk 0:02:56]} 6. e3 {[%clk 0:02:57]}  h6 {[%clk 0:02:55]} 7. Bf4 {[%clk 0:02:56]}  O-O {[%clk 0:02:54]} 8. g4 {[%clk 0:02:56]}  Ne4 {[%clk 0:02:42]} 9. Nxe4 {[%clk 0:02:56]}  dxe4 {[%clk 0:02:42]} 10. Nd2 {[%clk 0:02:56]}  f5 {[%clk 0:02:39]} 11. Rg1 {[%clk 0:02:43]}  Bg5 {[%clk 0:02:17]} 12. Bxg5 {[%clk 0:02:35]}  Qxg5 {[%clk 0:02:16]} 13. Qb3 {[%clk 0:02:21]}  b6 {[%clk 0:02:05]} 14. O-O-O {[%clk 0:02:21]}  Bb7 {[%clk 0:02:01]} 15. Bg2 {[%clk 0:01:59]}  a5 {[%clk 0:01:47]} 16. f4 {[%clk 0:01:56]}  Qe7 {[%clk 0:01:34]} 17. gxf5 {[%clk 0:01:55]}  exf5 {[%clk 0:01:31]} 18. Bh3 {[%clk 0:01:46]}  a4 {[%clk 0:01:25]} 19. Qc3 {[%clk 0:01:46]}  a3 {[%clk 0:01:14]} 20. b3 {[%clk 0:01:46]}  Qf6 {[%clk 0:01:09]} 21. Rg3 {[%clk 0:01:38]}  Nc5 {[%clk 0:01:06]} 22. Rdg1 {[%clk 0:01:36]}  Nd3+ {[%clk 0:01:02]} 23. Kc2 {[%clk 0:01:36]}  Rf7 {[%clk 0:00:56]} 24. d5 {[%clk 0:01:11]}  Qxc3+ {[%clk 0:00:47]} 25. Kxc3 {[%clk 0:01:12]}  Rd8 {[%clk 0:00:30]} 26. Nxe4 {[%clk 0:01:06]}  fxe4 {[%clk 0:00:26]} 27. Be6 {[%clk 0:01:07]}  Kf8 {[%clk 0:00:15]} 28. Bxf7 {[%clk 0:01:07]}  Kxf7 {[%clk 0:00:14]} 29. Rxg7+ {[%clk 0:01:07]}  Ke8 {[%clk 0:00:12]} 30. Rxc7 {[%clk 0:01:07]}  Rd7 {[%clk 0:00:02]} 31. Rg8+ {[%clk 0:01:02]}  Kf7 {[%clk 0:00:01]} 32. Rxd7+ {[%clk 0:01:02]}  Kxg8 {[%clk 0:00:00]} 33. Rxb7 {[%clk 0:01:02]} 1-0

[Event "December 5 Early 2023"]
[Site "https://www.chess.com"]
[Date "2023.12.05"]
[Round "2"]
[White "Bychkov, Vladimir"]
[Black "Phillips, Rene"]
[Result "1-0"]
[Board "247"]
[TimeControl "180+1"]
[WhiteFideId "24151513"]
[BlackFideId "2056275"]
[WhiteElo "2427"]
[BlackElo "1905"]
[WhiteTeam "RUS"]
[BlackTeam "USA"]
[WhiteClock "0:00:39"]
[BlackClock "0:00:00"]

1. e4 {[%clk 0:03:00]}  Nc6 {[%clk 0:02:59]} 2. Nf3 {[%clk 0:02:58]}  d5 {[%clk 0:02:58]} 3. exd5 {[%clk 0:02:57]}  Qxd5 {[%clk 0:02:59]} 4. Nc3 {[%clk 0:02:58]}  Qa5 {[%clk 0:02:59]} 5. Bb5 {[%clk 0:02:48]}  Bg4 {[%clk 0:02:58]} 6. h3 {[%clk 0:02:45]}  Bd7 {[%clk 0:02:56]} 7. O-O {[%clk 0:02:43]}  a6 {[%clk 0:02:54]} 8. Bxc6 {[%clk 0:02:40]}  Bxc6 {[%clk 0:02:54]} 9. Nd4 {[%clk 0:02:40]}  Bd7 {[%clk 0:02:49]} 10. a3 {[%clk 0:02:35]}  Nf6 {[%clk 0:02:44]} 11. b4 {[%clk 0:02:34]}  Qe5 {[%clk 0:02:38]} 12. Nf3 {[%clk 0:02:32]}  Qh5 {[%clk 0:02:37]} 13. Re1 {[%clk 0:02:26]}  Bc6 {[%clk 0:02:27]} 14. Ne5 {[%clk 0:02:10]}  Qxd1 {[%clk 0:02:23]} 15. Rxd1 {[%clk 0:02:11]}  Be4 {[%clk 0:02:11]} 16. d3 {[%clk 0:01:56]}  Bg6 {[%clk 0:02:05]} 17. Bf4 {[%clk 0:01:52]}  O-O-O {[%clk 0:01:58]} 18. a4 {[%clk 0:01:50]}  e6 {[%clk 0:01:49]} 19. Rdb1 {[%clk 0:01:43]}  Bd6 {[%clk 0:01:42]} 20. a5 {[%clk 0:01:40]}  Bxe5 {[%clk 0:01:31]} 21. Bxe5 {[%clk 0:01:41]}  Rhg8 {[%clk 0:01:24]} 22. b5 {[%clk 0:01:34]}  Nd5 {[%clk 0:01:06]} 23. bxa6 {[%clk 0:01:24]}  bxa6 {[%clk 0:01:07]} 24. Na4 {[%clk 0:01:19]}  f6 {[%clk 0:00:55]} 25. Bg3 {[%clk 0:01:16]}  e5 {[%clk 0:00:47]} 26. Nc5 {[%clk 0:01:14]}  Rd6 {[%clk 0:00:38]} 27. Ra3 {[%clk 0:01:05]}  Rc6 {[%clk 0:00:20]} 28. Rab3 {[%clk 0:00:58]}  Rxc5 {[%clk 0:00:14]} 29. Rb8+ {[%clk 0:00:57]}  Kd7 {[%clk 0:00:14]} 30. Rxg8 {[%clk 0:00:58]}  Rxc2 {[%clk 0:00:14]} 31. Rxg7+ {[%clk 0:00:58]}  Kc6 {[%clk 0:00:13]} 32. h4 {[%clk 0:00:46]}  Nc3 {[%clk 0:00:12]} 33. Ra1 {[%clk 0:00:42]}  Ne2+ {[%clk 0:00:10]} 34. Kh2 {[%clk 0:00:42]}  Nxg3 {[%clk 0:00:09]} 35. Kxg3 {[%clk 0:00:43]}  Bxd3 {[%clk 0:00:08]} 36. h5 {[%clk 0:00:42]}  Rc3 {[%clk 0:00:07]} 37. f3 {[%clk 0:00:40]}  e4 {[%clk 0:00:06]} 38. fxe4 {[%clk 0:00:39]}  Bxe4+ {[%clk 0:00:05]} 39. Kh2 {[%clk 0:00:40]}  Rc5 {[%clk 0:00:03]} 40. g4 {[%clk 0:00:38]}  Rc2+ {[%clk 0:00:00]} 41. Kg3 {[%clk 0:00:39]} 1-0

[Event "December 5 Early 2023"]
[Site "https://www.chess.com"]
[Date "2023.12.05"]
[Round "2"]
[White "Skiadopoulos, Nikolaos"]
[Black "Azar, Sebastien"]
[Result "0-1"]
[Board "249"]
[TimeControl "180+1"]
[WhiteFideId "4200772"]
[BlackFideId "2640198"]
[WhiteElo "1770"]
[BlackElo "2426"]
[WhiteTeam "GRE"]
[BlackTeam "CAN"]
[WhiteClock "0:00:00"]
[BlackClock "0:00:23"]

1. e4 {[%clk 0:03:00]}  c5 {[%clk 0:02:59]} 2. b4 {[%clk 0:02:59]}  cxb4 {[%clk 0:02:54]} 3. a3 {[%clk 0:02:58]}  d5 {[%clk 0:02:47]} 4. exd5 {[%clk 0:02:55]}  Qxd5 {[%clk 0:02:46]} 5. Nf3 {[%clk 0:02:55]}  Bg4 {[%clk 0:02:36]} 6. Bb2 {[%clk 0:02:39]}  e5 {[%clk 0:02:26]} 7. c4 {[%clk 0:02:29]}  Qe6 {[%clk 0:02:05]} 8. Be2 {[%clk 0:02:20]}  Nc6 {[%clk 0:01:59]} 9. O-O {[%clk 0:02:18]}  Nf6 {[%clk 0:01:53]} 10. Re1 {[%clk 0:02:08]}  Be7 {[%clk 0:01:53]} 11. axb4 {[%clk 0:02:04]}  Bxb4 {[%clk 0:01:38]} 12. Nxe5 {[%clk 0:01:54]}  Nxe5 {[%clk 0:01:37]} 13. Bxg4 {[%clk 0:01:54]}  Nfxg4 {[%clk 0:01:27]} 14. Qa4+ {[%clk 0:01:46]}  Kd8 {[%clk 0:01:13]} 15. Bxe5 {[%clk 0:01:13]}  Nxe5 {[%clk 0:01:08]} 16. Re3 {[%clk 0:00:56]}  Bc5 {[%clk 0:00:55]} 17. Re4 {[%clk 0:00:32]}  f5 {[%clk 0:00:49]} 18. d4 {[%clk 0:00:18]}  fxe4 {[%clk 0:00:44]} 19. dxc5 {[%clk 0:00:17]}  Qxc4 {[%clk 0:00:37]} 20. Qd1+ {[%clk 0:00:09]}  Qd3 {[%clk 0:00:37]} 21. Nd2 {[%clk 0:00:09]}  Ke7 {[%clk 0:00:30]} 22. Qh5 {[%clk 0:00:00]}  Nf7 {[%clk 0:00:23]} 0-1

[Event "December 5 Early 2023"]
[Site "https://www.chess.com"]
[Date "2023.12.05"]
[Round "3"]
[White "Nakamura, Hikaru"]
[Black "Miladinovic, Igor"]
[Result "1-0"]
[Board "1"]
[TimeControl "180+1"]
[WhiteFideId "2016192"]
[BlackFideId "4203380"]
[WhiteElo "3256"]
[BlackElo "2798"]
[WhiteTeam "USA"]
[BlackTeam "SRB"]
[WhiteClock "0:00:13"]
[BlackClock "0:00:07"]

1. Nf3 {[%clk 0:03:00]}  d5 {[%clk 0:02:59]} 2. g3 {[%clk 0:02:59]}  Nc6 {[%clk 0:02:59]} 3. d4 {[%clk 0:02:55]}  Bf5 {[%clk 0:02:59]} 4. a3 {[%clk 0:02:54]}  Qd7 {[%clk 0:02:58]} 5. h3 {[%clk 0:02:45]}  f6 {[%clk 0:02:54]} 6. Bg2 {[%clk 0:02:43]}  e5 {[%clk 0:02:52]} 7. c3 {[%clk 0:02:35]}  e4 {[%clk 0:02:51]} 8. Ng1 {[%clk 0:02:33]}  Nce7 {[%clk 0:02:43]} 9. c4 {[%clk 0:02:30]}  c6 {[%clk 0:02:43]} 10. Nc3 {[%clk 0:02:30]}  Be6 {[%clk 0:02:42]} 11. cxd5 {[%clk 0:02:23]}  cxd5 {[%clk 0:02:43]} 12. h4 {[%clk 0:02:22]}  h5 {[%clk 0:02:27]} 13. Nh3 {[%clk 0:02:22]}  Ng6 {[%clk 0:02:27]} 14. Nf4 {[%clk 0:02:22]}  Nxf4 {[%clk 0:02:27]} 15. Bxf4 {[%clk 0:02:22]}  Ne7 {[%clk 0:02:26]} 16. Qb3 {[%clk 0:02:08]}  Ng6 {[%clk 0:02:19]} 17. Rc1 {[%clk 0:02:07]}  Nxf4 {[%clk 0:02:11]} 18. gxf4 {[%clk 0:02:07]}  Be7 {[%clk 0:02:10]} 19. Qb5 {[%clk 0:01:45]}  Rc8 {[%clk 0:02:05]} 20. Kd2 {[%clk 0:01:40]}  Rc6 {[%clk 0:01:46]} 21. Qb3 {[%clk 0:01:16]}  Kf7 {[%clk 0:01:44]} 22. f5 {[%clk 0:01:14]}  Bxf5 {[%clk 0:01:41]} 23. Qxd5+ {[%clk 0:01:14]}  Qxd5 {[%clk 0:01:38]} 24. Nxd5 {[%clk 0:01:15]}  Bd6 {[%clk 0:01:37]} 25. Rxc6 {[%clk 0:01:10]}  bxc6 {[%clk 0:01:38]} 26. Nc3 {[%clk 0:01:11]}  Re8 {[%clk 0:01:32]} 27. e3 {[%clk 0:01:11]}  c5 {[%clk 0:01:32]} 28. Nb5 {[%clk 0:01:10]}  Bf8 {[%clk 0:01:31]} 29. dxc5 {[%clk 0:01:08]}  Bxc5 {[%clk 0:01:29]} 30. Rc1 {[%clk 0:01:07]}  Re5 {[%clk 0:01:20]} 31. Nd4 {[%clk 0:01:01]}  Bxd4 {[%clk 0:01:15]} 32. exd4 {[%clk 0:01:02]}  Rb5 {[%clk 0:01:16]} 33. b4 {[%clk 0:01:02]}  a5 {[%clk 0:01:03]} 34. Bf1 {[%clk 0:00:31]}  Rb8 {[%clk 0:00:58]} 35. Rc5 {[%clk 0:00:30]}  Be6 {[%clk 0:00:40]} 36. b5 {[%clk 0:00:23]}  f5 {[%clk 0:00:31]} 37. Ke3 {[%clk 0:00:21]}  a4 {[%clk 0:00:22]} 38. Rc7+ {[%clk 0:00:17]}  Kf6 {[%clk 0:00:22]} 39. Rc6 {[%clk 0:00:17]}  Ke7 {[%clk 0:00:21]} 40. Kf4 {[%clk 0:00:18]}  g6 {[%clk 0:00:19]} 41. Ke5 {[%clk 0:00:17]}  Bb3 {[%clk 0:00:19]} 42. d5 {[%clk 0:00:15]}  Kf7 {[%clk 0:00:19]} 43. Rc7+ {[%clk 0:00:15]}  Kf8 {[%clk 0:00:19]} 44. d6 {[%clk 0:00:16]}  Re8+ {[%clk 0:00:19]} 45. Kd4 {[%clk 0:00:16]}  Rd8 {[%clk 0:00:19]} 46. Kc5 {[%clk 0:00:16]}  f4 {[%clk 0:00:19]} 47. b6 {[%clk 0:00:16]}  e3 {[%clk 0:00:17]} 48. fxe3 {[%clk 0:00:17]}  fxe3 {[%clk 0:00:18]} 49. b7 {[%clk 0:00:17]}  Be6 {[%clk 0:00:18]} 50. Bb5 {[%clk 0:00:14]}  Bg4 {[%clk 0:00:16]} 51. d7 {[%clk 0:00:13]}  Ke7 {[%clk 0:00:14]} 52. Rc8 {[%clk 0:00:13]}  e2 {[%clk 0:00:13]} 53. Bxe2 {[%clk 0:00:13]}  Rxd7 {[%clk 0:00:07]} 54. b8=Q {[%clk 0:00:13]} 1-0

[Event "December 5 Early 2023"]
[Site "https://www.chess.com"]
[Date "2023.12.05"]
[Round "3"]
[White "Firouzja, Alireza"]
[Black "KhalilMousavi98"]
[Result "1-0"]
[Board "3"]
[TimeControl "180+1"]
[WhiteFideId "12573981"]
[WhiteElo "3169"]
[BlackElo "2788"]
[WhiteTeam "FRA"]
[WhiteClock "0:00:10"]
[BlackClock "0:00:03"]

1. e4 {[%clk 0:02:56]}  c5 {[%clk 0:02:59]} 2. Nf3 {[%clk 0:02:55]}  e6 {[%clk 0:02:59]} 3. g3 {[%clk 0:02:54]}  Nc6 {[%clk 0:02:53]} 4. Bg2 {[%clk 0:02:54]}  Nf6 {[%clk 0:02:53]} 5. d3 {[%clk 0:02:54]}  e5 {[%clk 0:02:51]} 6. O-O {[%clk 0:02:51]}  g6 {[%clk 0:02:42]} 7. c3 {[%clk 0:02:41]}  Bg7 {[%clk 0:02:38]} 8. h3 {[%clk 0:02:21]}  O-O {[%clk 0:02:33]} 9. Be3 {[%clk 0:02:21]}  b6 {[%clk 0:02:29]} 10. Nbd2 {[%clk 0:02:21]}  d5 {[%clk 0:02:19]} 11. Bg5 {[%clk 0:02:18]}  d4 {[%clk 0:02:15]} 12. cxd4 {[%clk 0:02:15]}  cxd4 {[%clk 0:02:11]} 13. Rc1 {[%clk 0:02:15]}  Bb7 {[%clk 0:02:07]} 14. Qa4 {[%clk 0:02:11]}  h6 {[%clk 0:01:58]} 15. Bh4 {[%clk 0:02:11]}  Rc8 {[%clk 0:01:30]} 16. g4 {[%clk 0:01:50]}  g5 {[%clk 0:01:31]} 17. Bg3 {[%clk 0:01:51]}  Nd7 {[%clk 0:01:31]} 18. b4 {[%clk 0:01:51]}  Qe7 {[%clk 0:01:16]} 19. a3 {[%clk 0:01:51]}  a5 {[%clk 0:01:11]} 20. Rc4 {[%clk 0:01:46]}  axb4 {[%clk 0:00:53]} 21. axb4 {[%clk 0:01:47]}  Ra8 {[%clk 0:00:51]} 22. Qb3 {[%clk 0:01:38]}  b5 {[%clk 0:00:51]} 23. Rcc1 {[%clk 0:01:32]}  Ra4 {[%clk 0:00:51]} 24. Qd5 {[%clk 0:01:27]}  Nb6 {[%clk 0:00:21]} 25. Qxb5 {[%clk 0:00:56]}  Rxb4 {[%clk 0:00:20]} 26. Qc5 {[%clk 0:00:56]}  Qxc5 {[%clk 0:00:20]} 27. Rxc5 {[%clk 0:00:56]}  Na4 {[%clk 0:00:21]} 28. Rc4 {[%clk 0:00:49]}  Nc3 {[%clk 0:00:12]} 29. Ra1 {[%clk 0:00:46]}  Ne2+ {[%clk 0:00:09]} 30. Kh2 {[%clk 0:00:46]}  Nxg3 {[%clk 0:00:08]} 31. Kxg3 {[%clk 0:00:43]}  Rb2 {[%clk 0:00:09]} 32. Rac1 {[%clk 0:00:37]}  Nb4 {[%clk 0:00:06]} 33. Bf1 {[%clk 0:00:25]}  Ba6 {[%clk 0:00:06]} 34. h4 {[%clk 0:00:17]}  Bxc4 {[%clk 0:00:06]} 35. Nxc4 {[%clk 0:00:17]}  Rc2 {[%clk 0:00:04]} 36. Rb1 {[%clk 0:00:13]}  Nc6 {[%clk 0:00:04]} 37. hxg5 {[%clk 0:00:13]}  hxg5 {[%clk 0:00:05]} 38. Nxg5 {[%clk 0:00:13]}  Bh6 {[%clk 0:00:05]} 39. Nh3 {[%clk 0:00:13]}  Rc8 {[%clk 0:00:03]} 40. g5 {[%clk 0:00:13]}  Bg7 {[%clk 0:00:03]} 41. Ng1 {[%clk 0:00:12]}  Ne7 {[%clk 0:00:04]} 42. Nf3 {[%clk 0:00:12]}  Ng6 {[%clk 0:00:04]} 43. Bh3 {[%clk 0:00:13]}  Rd8 {[%clk 0:00:02]} 44. Bf5 {[%clk 0:00:13]}  Rc3 {[%clk 0:00:03]} 45. Bxg6 {[%clk 0:00:13]}  fxg6 {[%clk 0:00:04]} 46. Nfxe5 {[%clk 0:00:13]}  Re8 {[%clk 0:00:03]} 47. f4 {[%clk 0:00:13]}  Rc8 {[%clk 0:00:04]} 48. Kg4 {[%clk 0:00:11]}  Re8 {[%clk 0:00:02]} 49. Rb6 {[%clk 0:00:10]}  Rc2 {[%clk 0:00:01]} 50. Rxg6 {[%clk 0:00:09]}  Rg2+ {[%clk 0:00:02]} 51. Kf5 {[%clk 0:00:10]}  Rg1 {[%clk 0:00:02]} 52. Nd7 {[%clk 0:00:08]}  Re7 {[%clk 0:00:02]} 53. Nf6+ {[%clk 0:00:09]}  Kf7 {[%clk 0:00:03]} 54. Ne5+ {[%clk 0:00:08]}  Kf8 {[%clk 0:00:04]} 55. Ned7+ {[%clk 0:00:08]}  Kf7 {[%clk 0:00:03]} 56. e5 {[%clk 0:00:08]}  Rf1 {[%clk 0:00:03]} 57. Nc5 {[%clk 0:00:08]}  Rxe5+ {[%clk 0:00:03]} 58. Kxe5 {[%clk 0:00:09]}  Kxg6 {[%clk 0:00:04]} 59. Ne4 {[%clk 0:00:06]}  Re1 {[%clk 0:00:04]} 60. f5+ {[%clk 0:00:06]}  Kf7 {[%clk 0:00:05]} 61. Kxd4 {[%clk 0:00:06]}  Bxf6+ {[%clk 0:00:04]} 62. Nxf6 {[%clk 0:00:07]}  Rf1 {[%clk 0:00:04]} 63. Ke5 {[%clk 0:00:07]}  Re1+ {[%clk 0:00:04]} 64. Ne4 {[%clk 0:00:08]}  Ra1 {[%clk 0:00:05]} 65. d4 {[%clk 0:00:08]}  Ra5+ {[%clk 0:00:06]} 66. d5 {[%clk 0:00:09]}  Ra1 {[%clk 0:00:06]} 67. g6+ {[%clk 0:00:09]}  Kg7 {[%clk 0:00:06]} 68. d6 {[%clk 0:00:10]}  Ra5+ {[%clk 0:00:06]} 69. Ke6 {[%clk 0:00:10]}  Ra4 {[%clk 0:00:07]} 70. Nf6 {[%clk 0:00:10]}  Ra6 {[%clk 0:00:07]} 71. Ne8+ {[%clk 0:00:09]}  Kf8 {[%clk 0:00:07]} 72. Nc7 {[%clk 0:00:10]}  Ra1 {[%clk 0:00:07]} 73. d7 {[%clk 0:00:09]}  Re1+ {[%clk 0:00:03]} 74. Kf6 {[%clk 0:00:10]} 1-0